Cogmind - Beta 17.1 *** ADVENTURER MODE // 2026.09.18 @ 01:25:19 Player: darlorth Result: Destroyed by Y-45 Defender with Heavy Assault Rifle Performance ------------- Evolutions (1) 500 Regions Visited (3) 600 Robots Destroyed (53) 265 Value Destroyed (1142) 1142 Prototype IDs (3) 60 Alien Tech Used (0) 0 Bonus (0) 0 TOTAL SCORE: 2567 Bonus ------- None Cogmind --------- Core Integrity 0/400 Matter 300/300 Energy 100/100 System Corruption 0% Temperature Cool (0) Movement Core (350) Ox6 Location -9/Materials Parts ------- > --- POWER (1) -------- (None) > --- PROPULSION (4) --- (None) > --- UTILITY (2) ------ Large Storage Unit Melee Analysis Suite > --- WEAPON (2) ------- (None) > --- INVENTORY (15) --- Flight Unit Subdweller Optics Rocket Launcher Peak State ------------ > --- POWER ------------ Light Ion Engine > --- PROPULSION ------- Light Treads Light Treads Wheel Improved Flight Unit > --- UTILITY ---------- Large Storage Unit Improved Terrain Scanner > --- WEAPON ----------- Light Assault Rifle Rocket Launcher > --- INVENTORY -------- Flight Unit Subdweller Optics Melee Analysis Suite Light Assault Rifle [Rating: 14] Favorites ----------- Power Light Ion Engine Engine Light Ion Engine Propulsion Light Treads Treads Light Treads Leg Aluminum Leg Wheel Wheel Flight Unit Improved Flight Unit Utility Large Storage Unit Device Improved Terrain Scanner Storage Large Storage Unit Processor Melee Analysis Suite Weapon Light Assault Rifle Energy Gun Small Laser Ballistic Gun Light Assault Rifle Ballistic Cannon Improved Light Cannon Launcher Grenade Launcher Build | -11 -10 -10 -9 ------- Run | Yrd Mat Min Mat Slots Evolved 2 | . . . 2 Power . | . . . . Propulsion 2 | . . . 2 Utility . | . . . . Weapon . | . . . . Parts Attached 26 | 5 7 4 10 Power 4 | 1 1 1 1 Engine 4 | 1 1 1 1 Core . | . . . . Reactor . | . . . . Propulsion 8 | 2 2 . 4 Treads 3 | . 1 . 2 Leg 2 | 2 . . . Wheel 2 | . 1 . 1 Hover . | . . . . Flight 1 | . . . 1 Utility 3 | . 1 1 1 Device 1 | . . 1 . Storage 1 | . 1 . . Processor 1 | . . . 1 Hackware . | . . . . Protection . | . . . . Artifact . | . . . . Weapon 11 | 2 3 2 4 Energy Gun 3 | . 1 . 2 Energy Cannon . | . . . . Ballistic Gun 5 | 2 1 2 . Ballistic Cannon 1 | . . . 1 Launcher 2 | . 1 . 1 Special Weapon . | . . . . Impact Weapon . | . . . . Slashing Weapon . | . . . . Piercing Weapon . | . . . . Special Melee Weapon . | . . . . Unidentified Prototypes 3 | . . . 3 Parts Lost 15 | . 2 2 11 Power 2 | . . 1 1 Propulsion 6 | . . . 6 Utility 1 | . . . 1 Weapon 6 | . 2 1 3 Highest Loss Streak 5 | . 2 1 5 To Critical Strikes . | . . . . Average Backups 5 | 1 5 5 5 Power . | . . . . Propulsion 2 | 1 3 3 1 Utility . | . . 1 1 Weapon 1 | . 1 1 1 Tool/Special . | . . . . Unused Backups 3 | . 1 . 2 Power . | . . . . Propulsion 2 | . 1 . 1 Utility 1 | . . . 1 Weapon . | . . . . Tool/Special . | . . . . Average Slot Usage (%) 77 | . 79 89 68 Engine 8 | . 14 10 3 Treads 10 | . 7 14 10 Leg 8 | . 17 . 3 Wheel 6 | . 2 14 6 Flight 2 | . . . 5 Device 5 | . . 8 9 Storage 10 | . 8 14 11 Energy Gun 3 | . 3 10 . Ballistic Gun 16 | . 22 12 13 Ballistic Cannon 1 | . . . 4 Launcher 1 | . 2 4 . Peak Build Rating 14 | 5 7 11 14 Average Rating 8 | 3 5 8 10 On Entrance 5 | . 5 7 11 Avg Prop Armor Cover (%) 12 | . 10 13 12 Naked Turns . | . . . . Heaviest Build 29 | 6 27 27 29 Greatest Support 40 | 20 20 10 40 Greatest Overweight (x) 8 | . 2 2 8 Average Overweight (x) 1 | . . 2 2 Largest Inventory Capacity 15 | 5 15 15 15 Average Capacity 13 | 5 11 15 15 Most Carried 13 | 4 12 12 13 Average Carried 8 | 1 6 11 8 Final Capacity 15 | 5 15 15 15 Final Carried 12 | 3 11 12 3 Class Distribution -------------------- 73% | Mutant 26% | Scavenger-Mutant Dominant Class ---------------- Mutant | -10/Materials Scavenger-Mutant | -10/Mines Mutant | -9/Materials Resources | -11 -10 -10 -9 ----------- Run | Yrd Mat Min Mat Matter Collected 1140 | 254 229 117 540 Remotely . | . . . . Salvage Created 1393 | 46 324 85 938 Parts 102 | 1 43 16 42 Haulers Intercepted 2 | . 1 . 1 Recyclers Shooed 9 | . . 1 8 Parts Field Recycled . | . . . . Retrieved Matter . | . . . . Parts Self-Destructed . | . . . . Prevented . | . . . . Parts Restored . | . . . . Kills | -11 -10 -10 -9 ------- Run | Yrd Mat Min Mat Combat Hostiles Destroyed 39 | 1 15 8 15 Guns 17 | 1 9 1 6 Cannons 8 | . . . 8 AOE 14 | . 6 7 1 Classes Destroyed 12 | 1 6 1 4 Worker 2 | . 1 . 1 Builder 1 | . 1 . . Tunneler 1 | . . 1 . Hauler 2 | . 1 . 1 Recycler 4 | . . . 4 Operator 1 | . . . 1 Watcher 3 | . 1 . 2 Swarmer 18 | . 12 6 . Grunt 13 | 1 . 2 10 Duelist 3 | . . . 3 Sentry 2 | . . . 2 Subdweller 3 | . 3 . . Best Kill Streak 8 | 1 4 3 8 Combat Bots Only 4 | 1 4 3 3 Max Kills in Single Turn 2 | 1 2 2 1 Gunslinging . | . . . . Exploded 2 | . 2 2 1 Melee . | . . . . Uniques/NPCs Destroyed . | . . . . Combat | -11 -10 -10 -9 -------- Run | Yrd Mat Min Mat Hostile Shots Fired 207 | 1 63 18 125 Missed 45 | . 14 6 25 Hits 162 | 1 49 12 100 Melee 17 | . . . 17 Projectile 145 | 1 49 12 83 Critical Strikes 4 | . . . 4 Damage Taken 1855 | 9 436 177 1233 Core 505 | . 58 42 405 Absorbed by Shields . | . . . . Ignored by Resistances 546 | 3 135 54 354 Core Remaining (%) 80 | 100 . 60 . Volleys Fired 171 | 1 54 18 98 Largest 2 | 2 2 2 2 Hottest 60 | 40 40 60 53 Shots Fired 286 | 2 97 23 164 Gun 216 | 2 88 12 114 Cannon 49 | . . . 49 Launcher 21 | . 9 11 1 Special . | . . . . Kinetic 258 | 2 88 5 163 Thermal 7 | . . 7 . Explosive 21 | . 9 11 1 Electromagnetic . | . . . . Robot Hit Streak 17 | 2 17 13 17 Robot Miss Streak 5 | . 5 3 2 Penetration Max . | . . . . Secondary Targets 4 | . 3 . 1 Max Gunslinging Chain 1 | . 1 . 1 Shots Hit Robots 214 | 2 64 16 132 Core Hits 90 | 2 30 12 46 Critical Kills . | . . . . Critical Parts Destroyed . | . . . . Critical Strikes 2 | . . . 2 Blast 2 | . . . 2 Melee Attacks . | . . . . Impact . | . . . . Slashing . | . . . . Piercing . | . . . . Sneak Attacks . | . . . . Combat Hostiles . | . . . . Follow-up Attacks . | . . . . Damage Inflicted 3401 | 23 1133 517 1728 Guns 1494 | 23 646 84 741 Cannons 840 | . . . 840 Explosions 1042 | . 478 433 131 Melee . | . . . . Ramming 25 | . 9 . 16 Kinetic 2265 | 23 646 15 1581 Thermal 69 | . . 69 . Explosive 1042 | . 478 433 131 Electromagnetic . | . . . . Impact . | . . . . Slashing . | . . . . Piercing . | . . . . Highest Corruption . | . . . . Average Corruption . | . . . . Corruption Purged . | . . . . Corruption Blocked . | . . . . Overload Shots . | . . . . Overflow Damage 34 | . 9 3 22 Projectiles 22 | . . . 22 Explosions 12 | . 9 3 . Melee . | . . . . Knockbacks 6 | . . . 6 Impact . | . . . . Kinetic 5 | . . . 5 Secondary 1 | . . . 1 Self-Inflicted Damage 103 | . 1 99 3 Shots 8 | . 1 7 . Rammed 9 | . . . 9 Targets Rammed 11 | . 2 . 9 Kicked 2 | . 2 . . Crushed . | . . . . Highest Temperature 20 | . 12 20 12 Average Temperature 7 | . 7 12 5 Received Heat Transfer 522 | 6 48 21 447 Siege Activations . | . . . . Martial Activations . | . . . . Shielding Activations . | . . . . Robots Disrupted . | . . . . Combat Hostiles . | . . . . Robots Corrupted . | . . . . Combat Hostiles . | . . . . Parts Fried . | . . . . Impact Corruptions . | . . . . Robots Melted . | . . . . Combat Hostiles . | . . . . Parts Melted 3 | . 2 1 . Heat Transferred 150 | . . 150 . Parts Sabotaged . | . . . . Parts Stolen . | . . . . Parts Stripped . | . . . . Power Chain Reactions . | . . . . Alert | -11 -10 -10 -9 ------- Run | Yrd Mat Min Mat Maximum Alert Level . | . . . . Low Security (%) 100 | 100 100 100 100 Level 1 . | . . . . Level 2 . | . . . . Level 3 . | . . . . Level 4 . | . . . . Level 5 . | . . . . High Security . | . . . . Max Security . | . . . . Peak Influence 186 | 20 152 186 133 Initial 44 | . 5 44 13 Average 52 | 2 26 118 48 Influence Increases 1141 | 20 385 267 469 Destroy 0b10 Robot/C 720 | 20 240 160 300 Destroy 0b10 Robot/NC 70 | . 20 5 45 Destroy Leader 140 | . 44 30 66 Successful Hack 16 | . 16 . . Disable Machine 45 | . 18 9 18 Destroy Structure 90 | . 32 48 10 Lose Combat Pursuer 60 | . 15 15 30 Influence Decreases 1141 | 10 260 361 510 Entered New Map 124 | . 5 91 28 Time Decay 898 | 10 235 250 403 Lost Part 119 | . 20 20 79 Squads Dispatched 3 | . 1 . 2 Investigation 1 | . 1 . . Extermination . | . . . . Reinforcement 2 | . . . 2 Assault . | . . . . Garrison . | . . . . Intercept . | . . . . Searches Triggered . | . . . . Construction Impeded . | . . . . Haulers Reinforced . | . . . . Active Scanning Responses . | . . . . Cargo Convoy Interrupts . | . . . . Stealth | -11 -10 -10 -9 --------- Run | Yrd Mat Min Mat Distress Signals 4 | . . . 4 Communications Jammed . | . . . . Distress Signals . | . . . . Times Spotted 67 | 1 24 8 34 Peak Tracking Total 6 | 1 3 3 6 Tactical Retreats 3 | . 1 1 1 Traps | -11 -10 -10 -9 ------- Run | Yrd Mat Min Mat Traps Triggered 1 | . 1 . . Indirectly . | . . . . Trap Hack Attempts . | . . . . Triggered . | . . . . Disarmed . | . . . . Reprogrammed . | . . . . Reused . | . . . . Traps Extracted . | . . . . Installed . | . . . . Triggered . | . . . . Machines | -11 -10 -10 -9 ---------- Run | Yrd Mat Min Mat Machines Disabled 5 | . 2 1 2 Max in Single Turn 2 | . 2 1 1 Machines Repaired . | . . . . Machines Dismantled . | . . . . Machines Sabotaged . | . . . . Overloaded Fab Kills . | . . . . Hacking | -11 -10 -10 -9 --------- Run | Yrd Mat Min Mat Machines Accessed 5 | . 5 . . Terminals 4 | . 4 . . Fabricators . | . . . . Repair Stations 1 | . 1 . . Recycling Units . | . . . . Scanalyzers . | . . . . Garrison Access . | . . . . Total Hacks 10 | . 10 . . Successful 3 | . 3 . . Failed 7 | . 7 . . Catastrophic 5 | . 5 . . Database Lockouts . | . . . . Manual 7 | . 7 . . Terminals 9 | . 9 . . Fabricators . | . . . . Repair Stations 1 | . 1 . . Recycling Units . | . . . . Scanalyzers . | . . . . Garrison Access . | . . . . Terminal Hacks 3 | . 3 . . Record 1 | . 1 . . Part Schematic 1 | . 1 . . Recall Investigation 1 | . 1 . . Fabricator Hacks . | . . . . Repair Station Hacks . | . . . . Recycling Unit Hacks . | . . . . Scanalyzer . | . . . . Garrison Access Hacks . | . . . . Unauthorized Hacks . | . . . . Terminals . | . . . . Fabricators . | . . . . Repair Stations . | . . . . Recycling Units . | . . . . Scanalyzers . | . . . . Garrison Access . | . . . . Data Cores Recovered . | . . . . Used . | . . . . Hacking Detections 3 | . 3 . . Full Trace Events . | . . . . Feedback Events . | . . . . Feedback Blocked . | . . . . Robot Schematics Acquired . | . . . . Robots Built . | . . . . Authchips . | . . . . Time . | . . . . Total Robot Build Rating . | . . . . Part Schematics Acquired 1 | . 1 . . Parts Built . | . . . . Authchips . | . . . . Time . | . . . . Total Part Build Rating . | . . . . Part Studies Acquired . | . . . . Parts Repaired . | . . . . Time . | . . . . Parts Recycled . | . . . . Recycled Matter . | . . . . Retrieved Matter . | . . . . Retrieved Components . | . . . . Parts Scanalyzed . | . . . . Part Schematics Acquired . | . . . . Parts Damaged . | . . . . Bothacking | -11 -10 -10 -9 ------------ Run | Yrd Mat Min Mat Used RIF Installer . | . . . . Robots Hacked . | . . . . Non-combat . | . . . . Combat . | . . . . Robot Hacks Applied . | . . . . Relay Couplers Released . | . . . . Fabnet Peak Effective % . | . . . . Robots Rewired . | . . . . Allies Hacked . | . . . . Hacks Repelled . | . . . . Allies | -11 -10 -10 -9 -------- Run | Yrd Mat Min Mat Total Allies . | . . . . Largest Group . | . . . . Highest-Rated Group . | . . . . Highest-Rated Ally . | . . . . Total Orders . | . . . . Ally Attacks . | . . . . Total Damage . | . . . . Kills . | . . . . Allies Corrupted . | . . . . Allies Melted . | . . . . Intel | -11 -10 -10 -9 ------- Run | Yrd Mat Min Mat Active Infowar (turns) 1128 | . . 303 825 Terrain 1128 | . . 303 825 Robot Analysis Total . | . . . . Derelict Logs Recovered 2 | . . 2 . Drone Launches . | . . . . Drone Recoveries . | . . . . Exploration | -11 -10 -10 -9 ------------- Run | Yrd Mat Min Mat Turns Passed 2570 | 112 959 519 980 Spaces Moved 1406 | 84 544 427 351 Core 93 | 25 . . 68 Treads 233 | . 117 . 116 Legs 338 | 59 279 . . Wheels 741 | . 148 427 166 Hover . | . . . . Flight 1 | . . . 1 Fastest Speed 50 | 50 110 110 110 Average Speed 144 | 99 145 110 195 Slowest Speed 450 | 120 240 110 450 Overloaded Moves . | . . . . Propulsion Burnouts . | . . . . Robots Hopped . | . . . . Potential Cave-ins . | . . . . Cave-ins Triggered . | . . . . Exploration Rate (%) 54 | 7 83 94 32 Regions Visited 3 Branch Regions 1 Pre-discovered Areas . | . . . . Known Exits Taken . | . . . . Unknown Exits Taken 3 | 1 1 1 . Scrap Searched 1 | . . 1 . Spaces Dug . | . . . . Terrain Destroyed 111 | . 31 71 9 Melee . | . . . . Projectile 2 | . . . 2 AOE 109 | . 31 71 7 Terrain Rammed . | . . . . Walls Destroyed . | . . . . Machines Disabled . | . . . . Actions | -11 -10 -10 -9 --------- Run | Yrd Mat Min Mat Total 1681 | 111 621 454 495 Wait 14 | 14 . . . Move 1403 | 83 543 426 351 Hop . | . . . . Pick Up 35 | 8 12 5 10 Fast Attach 1 | . 1 . . Attach 23 | 5 3 4 11 Detach . | . . . . Swap 9 | . 3 . 6 Drop 14 | . 3 1 10 Fire 171 | 1 54 18 98 Melee . | . . . . Ram 3 | . . . 3 Kick 2 | . 2 . . Crush 6 | . . . 6 Escape Stasis . | . . . . Rewire . | . . . . Trap . | . . . . Miscellaneous . | . . . . Route ------- -11/Scrapyard -10/Materials (discovered 4 exits: [*Mat x2] / [*Min] / [*Sub]) -10/Mines (discovered 2 exits: [*Mat x2]) -9/Materials (discovered 2 exits: [*Min] / [*Sto]) History --------- Turn | Location | Event 2 | -11/Scrapyard | Met Revision 17 84 | -11/Scrapyard | Discovered new exit (range 8) 113 | -11/Scrapyard | Entered Materials 314 | -10/Materials | Build established: Mutant 410 | -10/Materials | Discovered new exit (range 12) 622 | -10/Materials | Discovered new exit (range 7) 713 | -10/Materials | Derelicts attacked the area 845 | -10/Materials | Discovered new exit (range 8) 1005 | -10/Materials | Discovered new exit (range 15) 1072 | -10/Materials | Entered Mines 1141 | -10/Mines | Met a Derelict bent on vengeance 1234 | -10/Mines | Learned 2 Materials zone layouts 1234 | -10/Mines | Discovered new exit (range 6) 1410 | -10/Mines | Found a hidden stash of uninstalled traps 1452 | -10/Mines | Learned Materials trap positions 1547 | -10/Mines | Received a Rocket Launcher from a helpful Derelict 1578 | -10/Mines | Discovered new exit (range 9) 1591 | -10/Mines | Build established: Scavenger-Mutant 1591 | -10/Mines | Entered Materials 1591 | -9/Materials | Evolved 2 slots: Propulsion x2 1593 | -9/Materials | Loaded intel: 13 trap records 2071 | -9/Materials | Discovered new exit (range 16) 2307 | -9/Materials | Discovered new exit (range 15) 2383 | -9/Materials | Core integrity fell below 50% 2447 | -9/Materials | Lost 5 parts (3n1u1w) 2562 | -9/Materials | Core integrity fell below 20% 2571 | -9/Materials | Destroyed by Y-45 Defender with Heavy Assault Rifle Last Messages --------------- 02420_ K-01 Serf collects debris. 02424_ U-05 Engineer builds a Wall. 02424_ K-01 Serf collects debris. 02424_ U-05 Engineer builds a Wall. 02426_ R-06 Scavenger collects Aluminum Leg. 02427_ K-01 Serf collects debris. 02428_ U-05 Engineer lays Concrete. 02429_ U-05 Engineer builds a Wall. 02430_ R-06 Scavenger collects Heat Sink. 02431_ K-01 Serf collects debris. 02433_ U-05 Engineer lays Concrete. 02437_ R-06 Scavenger collects Com. Wheel. 02460_ Acquired 1 matter. 02552_ W-16 Scout distress signal alerts nearby ally. 02554_ Lgt. Assault Rifle destroyed. 02556_ ALERT: Hostiles spotted, dispatching reinforcements to Terminal M005. 02558_ Imp. Flight Unit destroyed. 02565_ Slammed into T-07 Excavator. Map ----- +----------------------------------------------------+ | ? ??#?##????# +?????#^ # #???????????????? | | ???????????? #?????# # #???????????????? | | ???????????######?????# # #???????????????? | | ????????????????#?????# # #???????????????? | | ??????????????????????+ + ! #???????????????? | | ??????????????????????# # #???????????????? | | ???#?????????????????## ###+####???????????????? | | ????????????? ??????" ?# ##?????????????????? | | ??#????????????????#"" ?# #??????????????????? | | ???????????????????#!! ?# #??????????????????? | | ?????????????????#?#"" < ## #??????????????????? | | ???????????????????#!! ## #??????????????????? | | ???????????????????#"" ## #??????????????????? | | ?????????????"?????#" ## #??????????????????? | | ????????????? ?????### ###w#??????????????????? | | ????????????###+####### ### ##??"" ????????????? | | ??????????? a # """ #???????????? | | ??????????? u + #???????????? | | ??????????? t #?????????????????# | | ??????????????#+## #?????????????????# | | ?????????????????# ##+######?????????# | | ?????????????????# ????????# | | ?????????????????# ???????? | | ?????????????????# ????????# | | ?????????????????###### %##############?????????# | | ??????????????????????# @#??????????????????????# | | ??????????????????????# #??????????????????????? | | ??????????????????????# #??????????????????????? | | ??????????????????????# #??????????????????????? | | ?????????????????????? ??????????????????????? | | ?????????????????????#[ Y ??????????????????????? | | ?????????????????????# ??????????????????????? | | ?????????????????????# ??????????????????????? | | ?????????????????????# ??????????????????????? | | ?????????????????????######??????????????????????? | | ?????????????????????????????????????????????????# | | ?????????????????????????????????????????????????? | | ?????????????????????????????????????????????????? | | ?????????????????????????????????????????????????? | | ?????????????????????????????????????????????????? | | ?????????????????????????????????????????????????? | | ?????????????????????????????????????????????????? | | ?????????????????????????????????????????????????? | | ?????????????????????????????????????????????????? | | ?????????????????????????????????????????????????? | | ?????????????????????????????????????????????????? | | ?????????????????????????????????????????????????? | | ?????????????????????????????????????????????????? | | ?????????????????????????????????????????????????? | | ?????????????????????????????????????????????????? | +----------------------------------------------------+ Best States ------------- Heat Dissipation 28 Energy Generation 10 Energy Capacity 125 Matter Stores 300 Matter Capacity 300 Sight Range 16 Terrain Scan Range 16 Terrain Scan Density 10 Resistance: KI 20 Resistance: TH 20 Resistance: EX 20 Resistance: EM 20 Resistance: I 20 Resistance: S 20 Resistance: P 20 Evasion (%) 55 Melee Accuracy 5 Recoil Reduction 2 Offensive Hacking 10 Item Schematics ----------------- Hcp. Storage Unit | -10/Materials | Hacked Robot Schematics ------------------ None Fabricated ------------ Nothing Repaired ---------- Nothing Studied --------- None Alien Tech Used ----------------- None Achievements -------------- None Challenges ------------ None Game ------ Seed SalvageHeavyConstruct Manual? 0 Play Time 00:24:53 Cumulative 299.0 hours Start 2026.09.18 @ 01:00:42 End 2026.09.18 @ 01:25:19 Sessions 1 Manual Loads 0 Difficulty Adventurer Special Mode None Game No. 323 Rogue 121 Adventurer 85 Explorer 117 Win Type - Total 23 Types 21/0/2/0/0/0/0/0/0/0 Lore% 27 Gallery% 58 Achievement% 36 Wizard Run 0 Options --------- Layout 1 ASCII 0 Keyboard 0 Movement Mouse Keybinds 0 Fullscreen 1 Font 24/Smallcaps Map View 50x35 Zoom Use 0% Tactical HUD 1 Map Filters NONE Filters NONE Steam 1 RUN: 5979b700-8485-4312-8d70-b4ceee68a63e